bitfinex-derivatives/quotes_ETHF0:USTF0_20250317
["timestamp","ask_amount","ask_price","bid_price","bid_amount"]
[1742218179759,1.05388,1898.0,1897.8,1.05392]
[1742218180060,1.05388,1897.9,1897.6,1.096]
[1742218180253,1.4069,1897.8,1897.7,2.42449]
[1742218180764,4.2896,1898.2,1898.0,1.05378]
[1742218180953,1.4069,1898.0,1897.9,1.05386]
[1742218181150,4.2896,1898.2,1898.1,1.05376]
[1742218181352,5.7136,1898.2,1898.1,1.05376]
[1742218181762,4.6318,1898.2,1898.1,1.05376]
[1742218181957,3.2078,1898.2,1898.1,1.05376]
[1742218182560,0.00788747,1898.4,1898.3,1.05365]
[1742218183163,1.43188747,1898.4,1898.3,1.05365]
[1742218183761,0.00788747,1898.4,1898.3,1.05365]
[1742218184858,1.38428747,1898.4,1898.3,1.05365]
[1742218185269,1.05371,1898.2,1898.1,1.4049]
[1742218185460,1.05369,1898.3,1898.1,2.45865]
[1742218185762,0.00788747,1898.4,1898.3,1.05365]
[1742218185960,1.38428747,1898.4,1898.3,1.05365]
[1742218186560,0.00788747,1898.4,1898.3,1.05365]
[1742218186960,1.38428747,1898.4,1898.3,1.05365]
[1742218187362,0.00788747,1898.4,1898.3,1.05365]
[1742218194263,45.06115,1898.9,1898.7,1.05339]
[1742218194469,1.322,1898.8,1898.7,1.05339]
[1742218195168,2.37538,1898.8,1898.6,1.05345]
[1742218195367,1.322,1898.8,1898.7,1.05343]
[1742218196868,1.322,1898.8,1898.7,2.37813]
[1742218197567,1.322,1898.8,1898.7,3.40483]
[1742218198866,3.21568747,1898.9,1898.8,1.05338]
[1742218199067,4.52898747,1898.9,1898.8,2.37808]
[1742218199873,44.0078,1899.4,1899.0,1.05322]
[1742218200171,1.3157,1899.1,1899.0,1.05327]
[1742218200378,1.3157,1899.3,1899.2,1.05315]
[1742218200768,1.3157,1899.3,1899.1,2.4468]
[1742218201067,2.3688,1899.3,1899.1,1.05317]
[1742218201377,1.3157,1899.3,1898.9,2.4492]
[1742218201671,1.05321,1899.1,1898.9,2.11619]
[1742218201877,1.05327,1899.0,1898.9,1.0629]
[1742218202080,0.3983,1899.3,1898.8,3.2078]
[1742218202379,0.00788747,1899.4,1899.0,1.05324]
[1742218202678,1.05317,1899.2,1899.0,1.05324]
[1742218203173,0.9952,1899.1,1899.0,1.05324]
[1742218203374,4.26876747,1899.4,1899.2,1.05314]
[1742218203566,0.9952,1899.3,1899.2,1.05314]
[1742218204086,0.00788747,1899.4,1899.2,1.05311]
[1742218204283,2.05614747,1899.4,1899.1,1.3362]
[1742218204481,1.00308747,1899.4,1899.3,1.0531]
[1742218204670,0.00788747,1899.4,1899.3,1.0531]
[1742218205282,0.00788747,1899.4,1898.9,3.2078]
[1742218205471,3.2078,1899.3,1899.0,1.0974]
[1742218205671,1.05327,1899.0,1898.8,2.48186]
[1742218205869,1.05337,1898.9,1898.7,1.0974]
[1742218206076,1.0596,1898.8,1898.7,2.15083]
[1742218206381,1.0596,1898.8,1898.7,1.0974]
[1742218206687,1.05349,1898.6,1898.5,0.00788747]
[1742218207171,6.76129,1898.6,1898.5,0.00788747]
[1742218207678,1.05358,1898.5,1898.3,1.05363]
[1742218207883,1.05358,1898.5,1898.3,1.05364]
[1742218208078,5.84159,1898.6,1898.0,1.4285]
[1742218208280,1.05365,1898.4,1898.2,1.05369]
[1742218208481,0.9844,1898.3,1898.2,1.05369]
[1742218208986,0.00788747,1898.4,1898.3,1.05365]
[1742218209984,0.00788747,1898.4,1898.2,1.4508]
[1742218210179,0.00788747,1898.4,1898.3,1.05365]
[1742218210879,0.00788747,1898.4,1898.2,2.50448]
[1742218211087,0.00788747,1898.4,1898.1,0.00788747]
[1742218211282,0.00788747,1898.4,1898.3,1.05365]
[1742218211486,0.00788747,1898.4,1898.2,1.4508]
[1742218211682,0.00788747,1898.4,1898.1,0.00788747]
[1742218211683,1.05371,1898.2,1898.1,0.00788747]
[1742218211988,3.2078,1898.2,1898.1,0.00788747]
[1742218212286,1.06149747,1898.4,1898.1,1.06160747]
[1742218212677,1.05365,1898.3,1898.1,1.06160747]
[1742218212873,1.0562,1898.2,1898.1,1.06164747]
[1742218213077,1.0562,1898.2,1898.1,0.00788747]
[1742218213485,1.0562,1898.2,1898.1,1.06164747]
[1742218213989,1.0562,1898.2,1898.1,0.00788747]
[1742218214292,2.10991,1898.2,1898.1,0.00788747]
[1742218214582,5.31771,1898.2,1898.1,0.00788747]
[1742218214790,1.0562,1898.2,1898.1,0.00788747]
[1742218214975,1.0562,1898.2,1898.1,1.06164747]
[1742218215378,2.10991,1898.2,1898.1,0.00788747]
[1742218215584,5.31771,1898.2,1898.1,0.00788747]
[1742218216384,1.0562,1898.2,1898.1,0.00788747]
[1742218216688,2.10991,1898.2,1898.1,0.00788747]
[1742218216886,1.0562,1898.2,1898.1,1.06164747]
[1742218217077,1.0562,1898.2,1898.1,0.00788747]
[1742218217587,1.0562,1898.2,1898.1,1.06164747]
[1742218217782,1.0562,1898.2,1898.1,0.00788747]
[1742218217987,2.10991,1898.2,1898.1,0.00788747]
[1742218218192,1.0562,1898.2,1898.1,0.00788747]
[1742218218487,1.0562,1898.2,1898.1,1.06164747]
[1742218218684,1.0562,1898.2,1898.1,2.45694747]
[1742218219094,4.26930747,1898.4,1898.1,2.45694747]
[1742218219277,4.26930747,1898.4,1898.2,1.3953]
[1742218219480,1.05365,1898.3,1898.2,1.3953]
[1742218220089,1.05369,1898.3,1898.1,0.00788747]
[1742218220577,1.05371,1898.2,1898.1,0.00788747]
[1742218220990,1.0537,1898.3,1898.1,1.06161747]
[1742218221178,1.05371,1898.2,1898.1,0.00788747]
[1742218221878,2.05441,1898.2,1898.1,0.00788747]
[1742218222281,5.26221,1898.2,1898.1,0.00788747]
[1742218222482,1.05392,1897.9,1897.7,2.50556]
[1742218222683,1.3844,1898.1,1897.7,1.4516]
[1742218223000,2.4382,1898.1,1897.8,1.4516]
[1742218223295,1.0537,1898.3,1898.1,1.05374]
[1742218223493,1.05371,1898.2,1898.0,1.05378]
[1742218223687,1.0327,1898.3,1898.2,1.05371]
[1742218223989,1.05379,1898.1,1897.9,2.11505]
[1742218224192,1.0327,1898.3,1898.0,1.0538]
[1742218224392,1.05376,1898.1,1897.9,2.11502]
[1742218224590,1.3552,1898.2,1897.6,4.203]
[1742218224789,3.2078,1898.0,1897.7,1.05394]
[1742218225095,3.2078,1897.8,1897.5,1.0541]
[1742218225292,1.3552,1897.7,1897.5,1.3616]
[1742218225486,1.3552,1897.7,1897.5,2.4157]
[1742218225685,2.40922,1897.7,1897.5,1.3616]
[1742218225881,41.8327,1897.9,1897.8,1.05393]
[1742218226082,2.3879,1897.9,1897.8,1.05393]
[1742218226286,2.3879,1897.9,1897.6,2.1153]
[1742218226491,1.3552,1897.8,1897.6,1.0613]
[1742218226697,1.05399,1897.7,1897.6,2.4229]
[1742218227590,2.40918,1897.8,1897.6,2.4229]
[1742218227796,2.40918,1897.8,1897.7,1.3294]
[1742218227991,1.05399,1897.7,1897.6,1.0613]
[1742218228394,1.05399,1897.7,1897.4,1.3294]
[1742218228395,1.0541,1897.5,1897.4,1.3294]
[1742218228590,1.05435,1897.1,1896.9,2.0796]
[1742218228789,1.05438,1897.0,1896.9,3.409]
[1742218229089,1.05438,1897.0,1896.9,2.3542]
[1742218229495,3.2078,1897.0,1896.5,1.0526]
[1742218229694,3.21568747,1897.2,1896.8,1.05449]
[1742218229894,3.21568747,1897.2,1896.9,1.3949]
[1742218230094,0.00788747,1897.2,1897.0,1.05438]
[1742218230287,0.00788747,1897.2,1897.1,2.44922]
[1742218232898,0.00788747,1897.2,1897.1,5.65702]
[1742218233094,4.26185,1897.6,1897.1,5.65702]
[1742218233405,3.2078,1897.6,1897.2,1.3693]
[1742218233603,5.29339,1897.9,1897.6,1.054]
[1742218233901,3.2078,1898.3,1897.7,1.3693]
[1742218234101,1.05377,1898.1,1897.7,2.4183]
[1742218234291,1.05378,1898.1,1897.8,1.37718747]
[1742218234491,1.05378,1898.1,1897.9,1.05386]
[1742218234707,1.06163747,1898.2,1898.0,1.3693]
[1742218234890,1.05376,1898.1,1898.0,1.3693]
[1742218235092,0.00788747,1898.2,1898.0,1.3693]
[1742218235502,1.05376,1898.1,1898.0,1.3693]
[1742218235805,0.00788747,1898.2,1898.0,1.3693]
[1742218236098,0.00788747,1898.2,1898.1,1.05376]
[1742218236297,0.00788747,1898.2,1898.1,2.06706]
[1742218236899,0.00788747,1898.2,1898.1,5.27486]
[1742218237100,0.00788747,1898.2,1898.1,2.06706]
[1742218238001,0.00788747,1898.2,1898.1,1.0133]
[1742218238199,0.00788747,1898.2,1898.1,2.06706]
[1742218238394,0.00788747,1898.2,1898.1,1.0133]
[1742218238591,4.26939747,1898.2,1898.1,1.0133]
[1742218238804,4.26939747,1898.2,1898.0,1.3693]
[1742218238805,1.05376,1898.1,1898.0,1.3693]
[1742218239006,1.05382,1898.0,1897.8,2.12310747]
[1742218239305,4.26944747,1898.2,1897.9,1.05386]
[1742218239490,0.00788747,1898.2,1898.0,1.05379]
[1742218239695,1.06161747,1898.2,1898.0,1.05379]
[1742218240292,0.00788747,1898.2,1898.1,2.42836]
[1742218242402,1.31948747,1898.2,1897.9,1.05383]
[1742218242608,2.37321747,1898.2,1898.0,2.36832]
[1742218242806,1.31948747,1898.2,1898.1,1.05376]
[1742218243001,0.00788747,1898.2,1898.1,2.36826]
[1742218243198,1.06159747,1898.2,1898.1,1.3145]
[1742218243499,2.37319747,1898.2,1898.1,1.3145]
[1742218243701,1.0538,1898.1,1897.9,1.05385]
[1742218244008,1.05382,1898.0,1897.9,1.3145]
[1742218244210,2.36539,1898.1,1897.9,2.36834]
[1742218244405,1.3116,1898.1,1898.0,1.05382]
[1742218244596,0.00788747,1898.2,1898.0,2.36832]
[1742218244801,0.00788747,1898.2,1897.8,1.06918747]
[1742218245106,3.2078,1898.1,1897.8,1.06918747]
[1742218245300,1.05388,1897.9,1897.8,0.00788747]
[1742218245497,1.05388,1897.9,1897.8,1.44158747]
[1742218245695,4.26168,1897.9,1897.8,0.00788747]
[1742218245899,2.63488,1897.8,1897.1,3.2078]
[1742218246101,4.26203,1897.3,1897.2,1.4337]
[1742218246308,2.63529,1897.5,1897.0,3.16865]
[1742218246610,4.2908,1897.5,1897.1,2.63581]
[1742218246806,1.1663326,1897.5,1897.4,1.05415]
[1742218247108,1.1663326,1897.5,1897.2,1.4337]
[1742218247109,1.083,1897.5,1897.2,1.4337]
[1742218247507,1.05415,1897.4,1897.1,1.05429]
[1742218247704,1.05426,1897.2,1897.1,1.4337]
[1742218247904,5.24394126,1897.5,1897.0,1.05437]
[1742218248112,1.05432,1897.1,1897.0,1.3484]
[1742218248609,0.00788747,1897.2,1897.1,1.05432]
[1742218248806,0.00788747,1897.2,1897.1,2.08352]
[1742218251811,0.00788747,1897.2,1897.1,5.29132]
[1742218252002,0.95345279,1897.7,1897.6,1.05404]
[1742218252209,2.1077,1897.8,1897.7,1.05399]
[1742218252405,7.0498,1898.3,1897.8,1.05391]
[1742218252710,3.2078,1898.3,1897.9,1.05387]
[1742218252903,1.05374,1898.2,1898.0,1.0538]
[1742218253105,1.05374,1898.2,1897.9,1.05384]
[1742218253311,1.05383,1898.0,1897.9,0.00788747]
[1742218253516,1.05379,1898.1,1897.9,0.00788747]
[1742218253817,1.05374,1898.2,1898.0,1.05381]
[1742218254118,1.05373,1898.2,1897.9,0.00788747]
[1742218254409,3.21568747,1898.3,1897.9,1.06172747]
[1742218254618,1.05382,1898.0,1897.9,0.00788747]
[1742218255106,5.13458,1898.0,1897.4,4.9199]
[1742218255303,3.2078,1897.8,1897.4,1.0779]
[1742218255517,1.05415,1897.4,1897.2,4.89624]
[1742218255714,1.05408,1897.6,1897.2,3.842]
[1742218256014,1.05407,1897.6,1897.4,1.05415]
[1742218256208,1.05407,1897.6,1897.2,3.842]
[1742218256413,1.05403,1897.7,1897.5,1.0541]
[1742218256717,1.05397,1897.8,1897.6,1.05403]
[1742218256912,1.05401,1897.7,1897.5,1.05408]
[1742218257114,1.05399,1897.8,1897.6,1.05402]
[1742218257415,1.05399,1897.8,1897.2,3.842]
[1742218257416,3.2078,1897.8,1897.2,3.842]
[1742218257617,1.05419,1897.4,1897.2,1.05424]
[1742218257813,3.2078,1897.3,1896.9,1.0779]
[1742218258119,1.05441,1897.0,1896.8,2.10348]
[1742218258511,40.8,1897.1,1897.0,1.05438]
[1742218259017,1.05428,1897.2,1897.0,1.05436]
[1742218259205,3.842,1897.2,1896.5,3.842]
[1742218259517,3.842,1897.2,1896.7,0.9845]
[1742218259518,1.0544,1897.0,1896.7,0.9845]
[1742218259815,3.2078,1896.9,1896.5,3.842]
[1742218260012,1.05458,1896.7,1896.5,4.89664]
[1742218260207,3.2078,1896.9,1896.5,3.842]
[1742218260412,3.2078,1896.9,1896.8,1.05449]
[1742218260613,1.9192,1897.1,1896.6,5.84423]
[1742218260809,1.9192,1897.1,1896.5,3.2078]
[1742218261010,5.127,1897.1,1896.6,3.842]
[1742218261319,1.9192,1897.1,1896.6,3.842]
[1742218261505,1.3187,1897.0,1896.9,1.05443]
[1742218261820,2.97353,1897.1,1896.7,1.4014]
[1742218262017,1.3187,1897.0,1896.9,1.05443]
[1742218262320,0.6014,1897.1,1897.0,1.05438]
[1742218262512,0.6014,1897.1,1897.0,4.26218]
[1742218262916,0.6014,1897.1,1897.0,2.45578]
[1742218263415,0.00788747,1897.3,1897.1,1.05427]
[1742218263715,1.05443,1896.9,1896.8,1.0188]
[1742218264021,1.05456,1896.7,1896.5,4.26243]
[1742218264225,1.0546,1896.6,1896.5,3.2078]
[1742218264520,1.4202,1896.6,1896.5,5.64275]
[1742218265120,1.3178,1897.0,1896.9,1.05443]
[1742218265424,1.05418,1897.4,1897.2,1.05426]
[1742218265620,0.9928,1897.5,1897.3,1.3803]
[1742218265828,1.05395,1897.8,1897.3,1.3803]
[1742218266115,1.05424,1897.3,1896.6,3.2078]
[1742218266323,1.05431,1897.2,1896.9,1.05443]
[1742218266518,0.00790847,1897.1,1896.8,7.05770847]
[1742218266822,0.00790847,1897.1,1897.0,1.05438]
[1742218267115,7.07812,1897.8,1897.0,3.2078]
[1742218267116,3.809,1897.8,1897.0,3.2078]
[1742218267318,0.6012,1897.8,1897.3,3.2078]
[1742218267523,1.4481,1897.7,1897.4,5.2598]
[1742218267718,0.6012,1897.8,1897.7,1.05399]
[1742218268020,1.05374,1898.2,1897.9,1.05386]
[1742218268317,1.4481,1898.1,1898.0,3.842]
[1742218268522,2.1069,1898.5,1898.4,1.0536]
[1742218268909,2.5002,1898.8,1898.3,8.4676]
[1742218269113,2.5002,1898.8,1898.4,1.4178]
[1742218269425,3.55359,1898.8,1898.5,1.0535]
[1742218269614,3.55359,1898.8,1898.4,1.4178]
[1742218269615,2.5002,1898.8,1898.6,4.89549]
[1742218269811,1.05343,1898.7,1898.6,3.842]
[1742218270012,1.05354,1898.5,1898.4,3.842]
[1742218270420,1.05353,1898.6,1898.3,1.05364]
[1742218270616,1.3361,1898.4,1898.3,1.4129]
[1742218270923,1.05365,1898.3,1898.2,3.842]
[1742218271128,1.05382,1898.0,1897.9,3.84890847]
[1742218271327,1.3361,1898.2,1897.9,1.06175847]
[1742218271515,1.3361,1898.2,1897.9,1.42080847]
[1742218271918,3.2078,1898.6,1898.0,3.2078]
[1742218272215,0.00790847,1898.8,1898.4,1.0536]
[1742218272216,1.3361,1898.5,1898.4,1.0536]
[1742218272421,1.3361,1898.5,1898.4,4.8946]
[1742218272624,1.3361,1898.5,1898.4,1.0536]
[1742218272817,1.3361,1898.5,1898.4,5.9077]
[1742218273524,1.3361,1898.5,1898.4,1.0131]
[1742218273731,1.3361,1898.5,1898.4,4.8541]
[1742218274028,1.3361,1898.5,1898.3,2.4665]
[1742218274029,1.3361,1898.5,1898.3,1.05362]
[1742218274222,1.3361,1898.5,1898.4,1.0536]
[1742218274727,2.08348847,1898.8,1898.3,4.6446]
[1742218274926,1.3808,1898.7,1898.6,1.05349]
[1742218275320,0.00790847,1898.8,1898.7,1.05343]
[1742218275723,40.8,1899.1,1898.7,4.26123]
[1742218276030,7.0488,1899.8,1898.9,3.2078]
[1742218276227,2.12265,1899.8,1899.1,3.2078]
[1742218276528,43.21569,1899.7,1899.4,1.05304]
[1742218276725,42.1628,1899.7,1899.6,1.05293]
[1742218276923,42.17070847,1899.7,1899.5,1.4093]
[1742218277119,0.00790847,1899.7,1899.6,1.05293]
[1742218277421,0.00790847,1899.7,1899.6,5.96573]
[1742218277620,0.00790847,1899.7,1899.6,4.9128]
[1742218277820,0.00790847,1899.7,1899.6,5.96573]
[1742218278620,3.674,1900.0,1899.9,1.05277]
[1742218278820,0.93119582,1900.0,1899.9,4.89277]
[1742218279137,1.0124,1900.5,1900.4,1.05249]
[1742218279325,3.2078,1902.0,1900.5,2.63109]
[1742218279525,3.2078,1902.0,1900.4,9.5478]
[1742218279526,1.4371,1901.8,1901.5,3.2078]
[1742218279823,0.00790847,1901.4,1901.3,3.2078]
[1742218280125,0.00790847,1901.4,1901.3,7.1088]
[1742218280320,0.00790847,1901.4,1901.3,3.901]
[1742218280517,0.00790847,1901.4,1901.3,3.902]
[1742218280823,0.00790847,1901.4,1901.3,7.1098]
[1742218281023,0.00790847,1901.4,1901.3,8.16179]
[1742218281222,0.00790847,1901.4,1901.3,7.1098]
[1742218281423,1.05984847,1901.4,1901.3,3.902]
[1742218281623,1.05984847,1901.4,1901.2,0.00788705]
[1742218281825,1.05217,1901.0,1900.7,7.1168]
[1742218282027,1.0523,1900.8,1900.5,7.1168]
[1742218282220,2.48314,1900.7,1900.5,3.909]
[1742218282526,41.85238,1900.6,1900.5,3.909]
[1742218282718,1.05244,1900.5,1900.3,7.1168]
[1742218283025,2.48329,1900.4,1900.3,3.2078]
[1742218283219,40.8,1900.6,1900.3,3.2078]
[1742218283531,4.6386,1901.3,1900.5,3.2078]
[1742218283723,4.6386,1901.3,1900.6,1.3688]
[1742218283923,1.05227,1900.9,1900.7,3.951]
[1742218284229,4.6386,1900.8,1900.5,1.3688]
[1742218284530,1.05236,1900.7,1900.3,4.5766]
[1742218284831,1.4013,1900.6,1900.4,5.3823]
[1742218285229,1.4013,1900.6,1900.4,6.43475]
[1742218285526,1.4013,1900.6,1900.5,3.2078]
[1742218286225,1.4013,1900.6,1900.5,4.26023]
[1742218286431,5.29649,1901.0,1900.6,1.05235]
[1742218286637,2.45357,1900.8,1900.7,3.946]
[1742218287132,0.00790847,1901.4,1901.0,1.05211]
[1742218287326,2.45337,1901.2,1901.0,7.1528]
[1742218287527,1.4013,1901.2,1901.0,7.1528]
[1742218287834,42.2013,1901.2,1901.0,8.20491]
[1742218288033,1.4013,1901.2,1901.0,7.1528]
[1742218288329,1.4013,1901.2,1901.1,1.0521]
[1742218288531,40.80790847,1901.4,1901.3,1.05199]
[1742218288827,40.80790847,1901.4,1901.3,8.21579]
[1742218288828,0.00790847,1901.4,1901.3,8.21579]
[1742218289333,0.00790847,1901.4,1901.3,7.1638]
[1742218289633,0.00790847,1901.4,1901.3,9.64419]
[1742218289932,0.00790847,1901.4,1901.3,8.21579]
[1742218290129,1.05984847,1901.4,1901.3,7.1638]
[1742218290427,1.05984847,1901.4,1901.3,3.956]
[1742218290631,0.00790847,1901.4,1901.3,7.1638]
[1742218290933,0.00790847,1901.4,1901.3,8.21579]
[1742218291226,0.00790847,1901.4,1901.3,7.1638]
[1742218291432,1.38650847,1901.4,1901.3,7.1638]
[1742218291830,1.38650847,1901.4,1901.3,8.21579]
[1742218292023,0.00790847,1901.4,1901.3,9.60199]
[1742218292225,2.142e-05,1901.4,1901.3,42.32139]
[1742218292426,2.142e-05,1901.4,1901.3,39.82139]
[1742218292622,2.1028,1902.2,1902.1,1.05155]
[1742218292828,2.1028,1902.2,1902.1,8.22535]
[1742218293028,1.3786,1902.3,1902.1,8.22533]
[1742218293236,1.3786,1902.3,1902.2,1.05149]
[1742218293436,1.3786,1902.3,1902.2,2.43769]
[1742218293627,1.0184,1902.7,1902.3,1.05141]
[1742218293628,1.3786,1902.6,1902.3,1.05141]
[1742218293936,1.38648705,1902.6,1902.4,5.01538]
[1742218294124,1.38648705,1902.6,1902.4,6.35828]
[1742218294331,1.38648705,1902.6,1902.5,1.05133]
[1742218294532,1.38648705,1902.6,1902.5,2.39423]
[1742218294837,1.38648705,1902.6,1902.5,5.60203]
[1742218295039,1.38648705,1902.6,1902.4,3.964]
[1742218295328,0.00788705,1902.6,1902.4,3.964]
[1742218295531,2.39385,1902.5,1902.3,7.18168705]
[1742218295837,1.3425,1902.5,1902.3,7.18168705]
[1742218296038,1.3425,1902.5,1902.3,3.21568705]
[1742218296234,2.39387,1902.5,1902.3,0.00788705]
[1742218296536,1.05138,1902.4,1902.3,0.00788705]
[1742218296736,2.3793,1902.4,1901.9,3.2078]
[1742218296925,2.3793,1902.4,1901.9,7.1688]
[1742218297130,1.05149,1902.2,1901.7,3.2078]
[1742218297330,1.05159,1902.1,1901.8,1.0517]
[1742218297531,1.05156,1902.1,1901.7,7.1658]
[1742218297725,44.81428231,1902.3,1901.7,7.1658]
[1742218297933,40.8,1902.3,1902.1,1.05152]
[1742218298238,40.8,1902.3,1902.2,1.05149]
[1742218298439,0.00788705,1902.6,1902.3,1.05142]
[1742218298639,1.05920705,1902.6,1902.3,5.01942]
[1742218298839,40.8,1902.5,1902.3,3.968]
[1742218299031,40.8,1902.5,1902.3,5.01944]
[1742218299232,40.8,1902.5,1902.4,1.05138]
[1742218299431,40.8,1902.5,1902.3,5.0194]
[1742218299635,0.00788705,1902.6,1902.4,1.05136]
[1742218299941,1.05135,1902.5,1902.3,5.01942]
[1742218300140,40.8,1902.4,1902.3,5.01944]
[1742218300439,1.39308705,1902.6,1902.3,3.968]
[1742218300741,1.39308705,1902.6,1902.3,7.1758]
[1742218301034,1.39308705,1902.6,1902.5,1.05133]
[1742218301235,1.39308705,1902.6,1902.4,2.40694]
[1742218301440,2.44437705,1902.6,1902.4,1.3556]
[1742218301639,2.44437705,1902.6,1902.3,8.2272]
[1742218301833,1.39308705,1902.6,1902.3,7.1758]
[1742218302238,1.39308705,1902.6,1902.5,1.05133]
[1742218302438,1.05135,1902.5,1902.3,7.1758]
[1742218302636,2.43658,1902.4,1902.3,3.2078]
[1742218302840,1.05148,1902.3,1902.0,1.05159]
[1742218303142,1.3608,1902.2,1902.0,6.41409]
[1742218303342,2.41232,1902.2,1902.0,3.961]
[1742218303736,1.05155,1902.1,1902.0,3.961]
[1742218303937,1.3608,1902.1,1901.9,3.962]
[1742218304136,1.3608,1902.1,1902.0,4.2594]
[1742218304344,1.3608,1902.1,1902.0,5.6609]
[1742218304539,0.00788705,1902.6,1902.0,4.6093]
[1742218304745,1.3608,1902.5,1902.3,1.05144]
[1742218304945,1.3608,1902.5,1902.4,1.05138]
[1742218305146,1.3608,1902.5,1902.3,5.3635]
[1742218305147,1.3608,1902.5,1902.3,6.41491]
[1742218305346,2.41213,1902.5,1902.3,6.41491]
[1742218305643,1.3608,1902.5,1902.3,6.41489]
[1742218305854,1.3608,1902.5,1902.4,1.05138]
[1742218306044,1.3608,1902.5,1902.4,4.25918]
[1742218306243,1.3608,1902.5,1902.4,5.64638]
[1742218306541,0.00788705,1902.6,1902.5,1.05133]
[1742218306736,0.00788705,1902.6,1902.5,1.3872]
[1742218306942,2.46375705,1902.6,1902.3,5.01341]
[1742218307141,1.41248705,1902.6,1902.3,6.40061]
[1742218307439,1.41248705,1902.6,1902.3,5.3492]
[1742218307750,2.46379705,1902.6,1902.3,6.40061]
[1742218307947,1.41248705,1902.6,1902.3,1.3872]
[1742218308148,1.41248705,1902.6,1902.4,9.59536]
[1742218308342,2.46376705,1902.6,1902.4,8.544]
[1742218308542,1.41248705,1902.6,1902.4,5.3362]
[1742218308743,2.46377705,1902.6,1902.4,5.3362]
[1742218308952,1.05133,1902.5,1902.4,5.3362]
[1742218309155,1.453,1902.5,1902.0,4.2628]
[1742218309354,1.05149,1902.2,1902.1,3.942]
[1742218309541,6.86503,1902.4,1901.7,0.00788705]
[1742218309849,1.05166,1901.9,1901.8,3.946]
[1742218310048,1.05166,1901.9,1901.8,3.944]
[1742218310251,1.05171,1901.8,1901.7,7.05e-06]
[1742218310546,2.62943,1901.7,1900.8,3.2078]
[1742218310748,2.62943,1901.7,1901.0,3.2078]
[1742218310749,1.052,1901.3,1901.0,3.2078]
[1742218310944,1.453,1901.2,1901.1,1.0521]
[1742218311138,1.453,1901.2,1901.0,4.6395]
[1742218311139,1.453,1901.2,1901.0,5.69163]
[1742218311347,1.453,1901.2,1901.1,1.0521]
[1742218311549,2.50509,1901.2,1901.1,1.0521]
[1742218311743,1.0521,1901.1,1901.0,2.48383]
[1742218311946,1.3938,1901.1,1901.0,5.69163]
[1742218312345,0.00788705,1901.3,1901.2,1.05205]
[1742218312648,0.00788705,1901.3,1901.2,4.25985]
[1742218312850,1.40168705,1901.3,1901.2,1.05205]
[1742218313648,2.45369705,1901.3,1901.1,4.25988]
[1742218313951,1.40168705,1901.3,1901.2,1.05205]
[1742218314148,1.40168705,1901.3,1901.2,1.4451]
[1742218314352,2.45367705,1901.3,1901.2,1.4451]
[1742218314552,1.40168705,1901.3,1901.2,2.49715]
[1742218314951,0.00788705,1901.3,1901.2,2.49715]
[1742218315252,7.2088,1902.1,1901.6,1.05178]
[1742218315452,1.387,1901.9,1901.7,4.6015]
[1742218315652,1.387,1901.9,1901.8,1.05171]
[1742218315842,5.0094,1902.3,1901.8,4.003]
[1742218316047,1.387,1902.2,1901.9,1.3937]
[1742218316352,1.05166,1901.9,1901.8,3.2078]
[1742218316657,1.05177,1901.7,1901.6,5.3957]
[1742218316853,1.387,1901.8,1901.6,5.0538]
[1742218317047,1.387,1901.8,1901.6,8.6035]
[1742218317360,2.43874,1901.8,1901.6,9.65533]
[1742218317656,1.387,1901.8,1901.7,1.05177]
[1742218317846,2.43871,1901.8,1901.7,1.3937]
[1742218318248,1.387,1901.8,1901.7,1.3937]
[1742218318450,2.43871,1901.8,1901.7,1.3937]
[1742218318643,1.387,1901.8,1901.7,1.3937]
[1742218318842,2.43871,1901.8,1901.7,1.3937]
[1742218319356,1.05177,1901.7,1901.5,2.03745705]
[1742218319553,40.8,1902.1,1901.6,3.2078]
[1742218319855,1.4272,1901.9,1901.7,2.43605]
[1742218320057,2.47887,1901.9,1901.7,2.43605]
[1742218320258,1.4272,1901.9,1901.8,3.2078]
[1742218320559,1.4272,1901.9,1901.8,4.25951]
[1742218320753,1.05171,1901.8,1901.6,1.05181]
[1742218320948,2.47897,1901.7,1901.5,3.42173705]
[1742218321151,1.05183,1901.6,1901.5,0.00788705]
[1742218321356,2.37293,1901.6,1901.5,0.00788705]
[1742218321857,1.3211,1901.6,1901.5,1.05976705]
[1742218322062,3.99588705,1902.2,1901.8,1.0517]
[1742218322353,0.00788705,1902.2,1902.1,1.05155]
[1742218322560,1.32898705,1902.2,1902.1,2.41225]
[1742218322856,2.38051705,1902.2,1902.0,3.2078]
[1742218323161,1.05155,1902.1,1902.0,3.2078]
[1742218323365,2.37265,1902.1,1902.0,3.2078]
[1742218323658,1.05171,1901.8,1901.6,1.3607]
[1742218323960,1.05183,1901.6,1901.4,8.25573]
[1742218324169,1.05183,1901.6,1901.1,1.0797]
[1742218324170,1.05195,1901.4,1901.2,1.05203]
[1742218324362,1.4473,1901.3,1901.1,6.5157]
[1742218324655,1.4473,1901.3,1901.2,1.05205]
[1742218324865,1.05206,1901.2,1901.0,3.2078]
[1742218325057,1.4473,1901.1,1901.0,4.25996]
[1742218325360,5.0661,1901.6,1901.2,1.05202]
[1742218325563,2.49929,1901.3,1901.1,1.05206]
[1742218325763,2.4993,1901.3,1901.1,1.05206]
[1742218325959,1.05205,1901.2,1901.0,4.25992]
[1742218326160,2.4994,1901.1,1901.0,3.2078]
[1742218326753,1.05216,1901.0,1900.9,0.00788705]
[1742218327058,9.70829,1901.0,1900.4,4.2816]
[1742218327252,8.6561,1901.0,1900.4,4.2816]
[1742218327452,8.6561,1901.0,1900.4,5.33406]